bitfinex-derivatives/quotes_ETHF0:USTF0_20250726
["timestamp","ask_amount","ask_price","bid_price","bid_amount"]
[1753547257793,3.2078,3734.7,3734.6,0.53536]
[1753547257794,4.5177,3734.7,3734.6,0.53536]
[1753547258097,4.65853288,3734.7,3734.6,4.03496]
[1753547258301,6.20153288,3734.7,3734.6,4.03496]
[1753547258498,2.99373288,3734.7,3734.6,4.03496]
[1753547258892,3.90043288,3734.7,3734.6,4.03496]
[1753547259092,4.47823288,3734.7,3734.6,4.03496]
[1753547259398,2.99373288,3734.7,3734.6,4.03496]
[1753547260796,1.7837,3734.9,3734.8,1.43694]
[1753547261100,3.89995651,3734.9,3734.8,4.03494]
[1753547261488,3.0936,3734.9,3734.8,4.03494]
[1753547262293,0.53526,3735.3,3734.8,3.4996]
[1753547262594,4.47737819,3735.2,3735.1,1.41039]
[1753547265001,4.47737819,3735.2,3735.1,2.45249]
[1753547265300,4.47737819,3735.2,3735.1,3.08129]
[1753547265500,4.47737819,3735.2,3735.1,3.58259]
[1753547268501,4.47737819,3735.2,3735.1,4.03489]
[1753547269903,3.6714,3735.2,3735.1,4.03489]
[1753547270706,3.6714,3735.2,3735.1,2.95379]
[1753547270897,3.6714,3735.2,3735.1,2.00319]
[1753547271101,3.6714,3735.2,3735.1,0.53529]
[1753547272506,3.0275,3735.0,3734.9,0.53532]
[1753547272705,3.6714,3735.0,3734.9,0.53532]
[1753547273001,4.20671,3735.0,3734.9,0.53532]
[1753547273207,3.6714,3734.9,3734.8,0.53533]
[1753547273707,3.6714,3734.9,3734.8,1.41043]
[1753547273908,3.6714,3734.9,3734.8,3.08133]
[1753547274107,3.6714,3734.9,3734.8,3.58263]
[1753547274709,3.6714,3734.9,3734.8,3.08133]
[1753547275111,4.20672,3734.9,3734.7,0.53535]
[1753547275405,3.6714,3734.8,3734.7,0.53535]
[1753547276408,2.2166,3734.7,3734.6,1.41046]
[1753547276608,3.6714,3734.7,3734.6,1.41046]
[1753547276920,3.6714,3734.7,3734.6,0.53536]
[1753547277605,7.41455,3734.7,3734.6,0.53536]
[1753547277803,7.68429895,3734.7,3734.6,0.53536]
[1753547278209,7.68429895,3734.7,3734.5,0.53537]
[1753547278410,3.6096,3734.6,3734.5,0.53537]
[1753547278610,3.6096,3734.6,3734.2,0.846]
[1753547278811,3.6096,3734.4,3734.3,1.3814]
[1753547279012,4.41496262,3734.4,3734.3,3.025]
[1753547279216,4.41496262,3734.4,3734.3,3.5026]
[1753547280010,1.4526,3734.2,3734.1,1.15833]
[1753547280216,8.15876528,3734.2,3734.1,1.38143]
[1753547280417,7.62334528,3734.2,3734.1,1.38143]
[1753547281121,7.62334528,3734.2,3734.1,2.40213]
[1753547281316,7.62334528,3734.2,3734.1,3.92913]
[1753547282418,4.01374528,3734.2,3734.1,3.92913]
[1753547282614,3.2078,3734.2,3734.1,3.92913]
[1753547283622,0.6342,3734.7,3734.6,3.92906]
[1753547283818,1.44104878,3734.7,3734.6,3.92906]
[1753547284723,0.80684878,3734.7,3734.6,3.92906]
[1753547284920,1.89104878,3734.7,3734.6,3.92906]
[1753547285125,2.32824878,3734.7,3734.6,3.92906]
[1753547285625,2.96094878,3734.7,3734.6,3.92906]
[1753547288226,1.69404878,3734.7,3734.6,3.92906]
[1753547288421,1.25684878,3734.7,3734.6,3.92906]
[1753547288621,0.80684878,3734.7,3734.6,3.92906]
[1753547289524,2.1541,3734.9,3734.8,0.53534]
[1753547289829,2.3285769,3734.9,3734.8,3.92904]
[1753547291028,2.9612769,3734.9,3734.8,3.92904]
[1753547294429,2.96124354,3734.9,3734.8,3.92904]
[1753547295332,3.52664354,3734.9,3734.8,3.92904]
[1753547295531,4.41674354,3734.9,3734.8,3.92904]
[1753547296135,3.52664354,3734.9,3734.8,3.92904]
[1753547296339,1.89134354,3734.9,3734.8,3.92904]
[1753547296735,2.32854354,3734.9,3734.8,3.92904]
[1753547296938,2.96124354,3734.9,3734.8,3.92904]
[1753547298036,4.41674354,3734.9,3734.8,3.92904]
[1753547300444,4.41674354,3734.9,3734.8,1.38134]
[1753547300642,4.41674354,3734.9,3734.8,0.53534]
[1753547300939,0.4372,3734.3,3734.2,0.6229]
[1753547301143,3.6096,3734.3,3734.2,3.02502]
[1753547301340,3.6096,3734.3,3734.2,3.50262]
[1753547301642,3.6096,3734.3,3734.2,3.92912]
[1753547301834,3.2078,3734.6,3734.2,3.3937]
[1753547302040,6.252,3734.6,3734.5,3.92908]
[1753547302241,7.05950219,3734.6,3734.5,3.92908]
[1753547302445,7.62490219,3734.6,3734.5,3.92908]
[1753547309853,4.41710219,3734.6,3734.5,3.92908]
[1753547311354,3.85170219,3734.6,3734.5,3.92908]
[1753547311555,4.40260219,3734.6,3734.5,3.92908]
[1753547316455,1.25750219,3734.6,3734.5,3.92908]
[1753547316755,3.2078,3735.0,3734.9,3.84562]
[1753547317059,2.95205191,3735.0,3734.9,3.84562]
[1753547317259,4.33125191,3735.0,3734.9,3.84562]
[1753547319655,3.50295191,3735.0,3734.9,3.84562]
[1753547320163,4.33125191,3735.0,3734.9,3.84562]
[1753547324862,4.33125191,3735.0,3734.9,1.93402]
[1753547325167,7.53905191,3735.0,3734.9,1.93402]
[1753547326263,7.53905191,3735.0,3734.9,2.97862]
[1753547326657,7.53905191,3735.0,3734.9,3.43282]
[1753547327063,7.53905191,3735.0,3734.9,3.84562]
[1753547329767,7.53905191,3735.0,3734.9,3.43282]
[1753547330572,7.53905191,3735.0,3734.9,0.53532]
[1753547331069,7.53905191,3735.0,3734.9,1.39512]
[1753547331464,7.53905191,3735.0,3734.9,0.53532]
[1753547332266,7.53905191,3735.0,3734.9,1.39512]
[1753547332871,4.33125191,3735.0,3734.9,1.39512]
[1753547333174,7.53905191,3735.0,3734.9,1.39512]
[1753547333465,7.53905191,3735.0,3734.9,0.53532]
[1753547334174,7.53905191,3735.0,3734.9,1.39512]
[1753547334472,7.53905191,3735.0,3734.9,1.99552]
[1753547335368,8.07436191,3735.0,3734.9,1.39512]
[1753547335567,7.53905191,3735.0,3734.9,1.39512]
[1753547336073,4.05863,3734.9,3734.8,0.53534]
[1753547336366,4.33125191,3734.9,3734.8,0.53534]
[1753547336571,4.33125191,3734.9,3734.8,1.39514]
[1753547336771,4.33125191,3734.9,3734.8,2.97864]
[1753547338068,4.33125191,3734.9,3734.4,1.5203]
[1753547338273,3.5233,3734.9,3734.8,0.53534]
[1753547338475,4.33112766,3734.9,3734.8,1.40544]
[1753547338676,4.33112766,3734.9,3734.8,3.49194]
[1753547339674,7.53892766,3734.9,3734.8,3.49194]
[1753547339976,4.33112766,3734.9,3734.8,3.49194]
[1753547340176,7.53892766,3734.9,3734.8,3.49194]
[1753547342977,1.34026,3734.7,3734.6,1.8751]
[1753547343180,1.34026,3734.7,3734.1,3.90414]
[1753547343181,3.4285,3734.2,3734.1,3.90414]
[1753547343484,7.44412766,3734.2,3734.1,2.41054]
[1753547343672,7.44412766,3734.2,3734.1,3.49204]
[1753547343876,7.44412766,3734.2,3734.1,3.90414]
[1753547346379,7.97954766,3734.2,3734.1,2.9566]
[1753547346580,7.97954766,3734.2,3734.1,2.5253]
[1753547346785,7.97954766,3734.2,3734.1,1.8751]
[1753547348188,7.97954766,3734.2,3734.1,0.8701]
[1753547348385,3.96398,3733.8,3733.7,1.4363]
[1753547348676,7.44412766,3733.8,3733.5,0.4313]
[1753547348883,3.4285,3733.6,3733.5,0.8701]
[1753547349081,3.96401,3733.6,3733.5,1.8751]
[1753547349282,3.96401,3733.6,3733.5,2.5253]
[1753547349478,1.8069,3733.4,3733.1,0.6502]
[1753547349685,3.96406,3733.2,3733.1,2.5253]
[1753547349876,3.4285,3733.2,3733.1,2.9566]
[1753547350280,3.96406,3733.2,3733.1,2.9566]
[1753547350681,4.77030006,3733.2,3733.1,2.5253]
[1753547351685,4.77030006,3733.2,3733.1,1.8751]
[1753547351884,4.77030006,3733.2,3733.1,1.4445]
[1753547353683,4.77030006,3733.2,3733.1,0.8701]
[1753547354286,4.77030006,3733.2,3733.1,2.5253]
[1753547354485,4.76865498,3733.2,3733.1,2.5253]
[1753547354986,4.76865498,3733.2,3733.1,1.4445]
[1753547355181,4.76865498,3733.2,3733.1,0.8701]
[1753547356385,4.76865498,3733.2,3733.1,1.4445]
[1753547356581,4.76865498,3733.2,3733.1,2.5253]
[1753547356790,3.96418,3732.4,3732.3,2.9566]
[1753547357079,7.17198,3732.4,3732.3,2.5253]
[1753547357285,1.90129,3732.3,3732.2,0.01875544]
[1753547357481,3.96419,3732.3,3732.2,0.88885544]
[1753547357875,3.96419,3732.3,3732.2,1.89385544]
[1753547358091,3.96419,3732.3,3732.2,2.95615544]
[1753547358289,3.96419,3732.3,3732.2,3.38745544]
[1753547360490,2.56859,3732.3,3732.2,3.38745544]
[1753547361282,2.0329,3732.3,3732.2,3.38745544]
[1753547361483,2.56859,3732.3,3732.2,3.38745544]
[1753547361690,5.77639,3732.3,3732.2,3.38745544]
[1753547363192,4.6389,3732.3,3732.2,3.38745544]
[1753547363389,3.2078,3732.3,3732.2,3.92316544]
[1753547364387,3.74349,3732.3,3732.2,3.38745544]
[1753547364590,3.2078,3732.3,3732.2,3.38745544]
[1753547365388,3.74349,3732.3,3732.2,3.38745544]
[1753547365588,4.36969,3732.3,3732.2,3.38745544]
[1753547365787,5.38279,3732.3,3732.2,3.38745544]
[1753547366094,5.77639,3732.3,3732.2,3.38745544]
[1753547366796,7.17199,3732.3,3732.2,1.89385544]
[1753547370089,7.17199,3732.3,3732.2,3.36305544]
[1753547370991,3.74349,3732.3,3732.2,3.36305544]
[1753547371192,5.75289,3732.3,3732.2,3.36305544]
[1753547371988,6.54839,3732.3,3732.2,3.36305544]
[1753547372396,7.35278575,3732.3,3732.2,3.36305544]
[1753547372596,7.91908575,3732.3,3732.2,3.36305544]
[1753547375991,4.71128575,3732.3,3732.2,3.36305544]
[1753547376496,7.91908575,3732.3,3732.2,3.36305544]
[1753547381097,4.71128575,3732.3,3732.2,3.36305544]
[1753547381297,7.91908575,3732.3,3732.2,3.36305544]
[1753547382503,4.71128575,3732.3,3732.2,3.36305544]
[1753547382708,7.91908575,3732.3,3732.2,3.36305544]
[1753547383104,7.91908575,3732.3,3732.2,2.94115544]
[1753547383304,3.90695,3731.9,3731.8,2.63509307]
[1753547383598,7.91914575,3731.9,3731.8,2.63509307]
[1753547384306,7.91914575,3731.9,3731.8,0.19829307]
[1753547384708,7.91914575,3731.9,3731.8,2.63509307]
[1753547385407,7.91914575,3731.9,3731.8,3.41629307]
[1753547386016,7.91914575,3731.9,3731.8,3.95205307]
[1753547386017,4.01219575,3731.9,3731.8,3.95205307]
[1753547388812,4.61139575,3731.9,3731.8,3.95205307]
[1753547389115,6.81709575,3731.9,3731.8,3.95205307]
[1753547389516,7.38339575,3731.9,3731.8,3.95205307]
[1753547390013,0.80439575,3731.9,3731.8,3.95205307]
[1753547390211,0.5992,3732.1,3732.0,3.75374]
[1753547390513,3.36413971,3732.1,3732.0,3.75374]
[1753547390723,4.15043971,3732.1,3732.0,3.75374]
[1753547391107,3.61471971,3732.1,3732.0,3.75374]
[1753547391307,4.15043971,3732.1,3732.0,3.218]
[1753547391518,4.71673971,3732.1,3732.0,3.218]
[1753547392213,4.18101971,3732.1,3732.0,3.218]
[1753547392415,4.18101971,3732.1,3732.0,3.75374]
[1753547392918,4.18101971,3732.1,3732.0,3.218]
[1753547393718,4.71673971,3732.1,3732.0,3.218]
[1753547395119,2.0094,3732.1,3732.0,3.75374]
[1753547395316,2.819176,3732.1,3732.0,3.75374]
[1753547395620,1.408976,3732.1,3732.0,3.75374]
[1753547395921,0.809776,3732.1,3732.0,3.75374]
[1753547396711,1.408976,3732.1,3732.0,3.75374]
[1753547397922,0.809776,3732.1,3732.0,3.75374]
[1753547398318,0.5826,3732.4,3732.3,1.88179]
[1753547398519,2.7548949,3732.4,3732.3,3.75899]
[1753547399125,4.1230949,3732.4,3732.3,3.75899]
[1753547400323,0.8094949,3732.4,3732.3,3.75899]
[1753547400620,1.4246,3732.7,3732.6,1.32115]
[1753547400820,4.12280613,3732.7,3732.6,3.75895]
[1753547401121,4.65844613,3732.7,3732.6,3.75895]
[1753547401322,0.9462,3732.5,3732.4,2.18517]
[1753547401517,4.12280613,3732.5,3732.4,2.74577]
[1753547401824,4.12280613,3732.5,3732.4,3.75897]
[1753547402322,3.3136,3732.5,3732.4,3.75897]
[1753547402925,4.12239649,3732.5,3732.4,3.75897]
[1753547403227,3.3136,3732.5,3732.4,3.75897]
[1753547403719,3.3136,3732.5,3731.8,1.53769307]
[1753547403720,2.1404,3732.5,3732.1,1.2608]
[1753547403921,1.3682,3732.2,3732.1,2.49822]
[1753547404122,3.3136,3732.2,3732.1,2.49822]
[1753547404623,3.3136,3732.2,3732.1,3.75902]
[1753547404818,0.5826,3732.2,3732.1,3.75902]
[1753547405023,3.2078,3733.0,3732.4,2.6069]
[1753547405324,2.2048,3732.8,3732.7,3.75894]
[1753547405525,3.59564934,3732.8,3732.7,3.75894]
[1753547406528,0.80824934,3732.8,3732.7,3.75894]
[1753547406830,0.5826,3733.3,3733.2,3.75886]
[1753547407321,2.7874,3733.3,3733.2,3.75886]
[1753547407625,3.3136,3733.3,3733.2,0.53556]
[1753547408224,3.3136,3733.3,3733.2,2.28786]
[1753547408422,3.3136,3733.3,3733.2,3.75886]
[1753547411627,1.3682,3732.9,3732.8,3.2233]
[1753547411825,3.3136,3732.9,3732.8,2.6069]
[1753547412026,3.3136,3732.9,3732.8,3.14252]
[1753547412331,3.3136,3732.9,3732.8,3.75892]
[1753547413627,3.3136,3733.2,3733.1,1.88168]
[1753547413930,3.3136,3733.2,3733.1,3.75888]
[1753547421334,0.5826,3733.2,3733.1,3.75888]
[1753547421538,6.5214,3733.8,3733.7,3.75879]
[1753547421736,0.7722,3734.0,3733.9,1.49286]
[1753547422038,0.80249372,3734.0,3733.9,3.75876]
[1753547422344,0.5906,3734.1,3734.0,1.88155]
[1753547422538,3.2078,3734.3,3734.2,1.32092]
[1753547422739,4.5626,3734.3,3734.2,3.75872]
[1753547422940,6.5214,3734.3,3734.2,3.75872]
[1753547423436,6.5214,3734.3,3734.2,2.74552]
[1753547423637,6.5214,3734.3,3734.2,0.53542]
[1753547427141,6.5214,3734.3,3734.2,2.64422]
[1753547427344,6.5214,3734.3,3734.2,3.06472]
[1753547427546,6.5214,3734.3,3734.2,3.68882]
[1753547430448,3.3136,3734.3,3734.2,3.68882]
[1753547436650,3.3136,3734.3,3734.2,3.06472]
[1753547437950,3.3136,3734.3,3734.2,3.68882]
[1753547439249,0.5826,3734.3,3734.2,3.68882]
[1753547439559,3.3021,3734.6,3734.5,3.71098]
[1753547439858,3.2078,3734.9,3734.8,1.93404]
[1753547439859,2.5238,3734.9,3734.8,1.93404]
[1753547440047,4.10418215,3734.9,3734.8,3.71094]
[1753547441966,1.42028215,3734.9,3734.8,3.71094]
[1753547442166,0.6182,3734.9,3734.8,3.71094]
[1753547442469,2.7687,3734.9,3734.8,3.71094]
[1753547442857,3.2258,3735.3,3735.2,0.53528]
[1753547443061,5.33264724,3735.3,3735.2,3.08678]
[1753547443469,7.32994724,3735.3,3735.2,3.08678]
[1753547444065,6.5279,3735.3,3735.2,3.08678]
[1753547444866,6.5279,3735.3,3735.2,3.71088]
[1753547445669,3.3201,3735.3,3735.2,3.71088]
[1753547446570,0.6362,3735.3,3735.2,3.71088]
[1753547446765,1.4145,3735.3,3735.2,3.71088]
[1753547446969,3.3201,3735.3,3735.2,3.71088]
[1753547447971,3.3201,3735.3,3735.2,3.71088]
[1753547455271,0.018,3735.3,3735.2,3.71088]
[1753547455479,0.6362,3735.3,3735.2,3.71088]
[1753547458177,1.4443,3735.3,3735.2,3.71088]
[1753547458376,2.8271,3735.3,3735.2,3.71088]
[1753547458579,3.3326,3735.3,3735.2,3.71088]
[1753547461483,2.019,3735.3,3735.2,3.71088]
[1753547461782,2.8271,3735.3,3735.2,3.71088]
[1753547462083,0.018,3735.3,3735.2,3.71088]
[1753547462575,3.2991,3735.3,3735.2,3.71088]
[1753547462776,3.2991,3735.3,3735.2,3.08678]
[1753547463881,3.2991,3735.3,3735.2,2.66628]
[1753547464289,3.2991,3735.3,3735.2,0.53528]
[1753547465786,3.2991,3735.3,3734.8,13.4084]
[1753547465787,0.5055,3734.7,3734.6,1.5665]
[1753547465987,3.2811,3734.7,3734.6,2.64806]
[1753547466487,3.2811,3734.7,3734.6,3.62086]
[1753547467278,0.8081,3735.0,3734.6,3.0855]
[1753547467589,3.2811,3734.9,3734.8,3.62083]
[1753547469884,1.9675,3734.9,3734.8,3.62083]
[1753547470186,1.2057,3735.1,3735.0,0.53531]
[1753547470382,0.018,3735.3,3735.2,0.53528]
[1753547470589,0.6039,3735.3,3735.2,3.62078]
[1753547471088,0.018,3735.3,3735.2,3.62078]
[1753547473786,0.6039,3735.3,3735.2,3.62078]
[1753547473986,3.2991,3735.3,3735.2,3.62078]
[1753547476291,0.6039,3735.3,3735.2,3.62078]
[1753547476488,3.4811,3735.9,3735.8,3.60269]
[1753547476686,1.5477,3735.9,3735.8,3.60269]
[1753547477188,2.3558,3735.9,3735.8,3.60269]
[1753547477584,2.9756,3735.9,3735.8,3.60269]
[1753547478479,3.4811,3735.9,3735.8,3.60269]
[1753547479586,0.7859,3735.9,3735.8,3.60269]
[1753547479786,0.2,3735.9,3735.8,3.60269]
[1753547480584,3.4811,3735.9,3735.8,3.60269]
[1753547481586,3.2078,3736.9,3736.0,1.46686]
[1753547481587,1.4279,3736.1,3736.0,1.46686]
[1753547481888,3.2811,3736.4,3736.3,1.86222]
[1753547482192,3.2811,3736.4,3736.3,3.60262]
[1753547485086,0.6198,3736.6,3736.5,0.53509]
[1753547485286,4.7165,3736.9,3736.8,1.86215]
[1753547485489,5.0949,3736.9,3736.8,3.82775]
[1753547486593,5.0949,3736.9,3736.8,2.04415]
[1753547486795,5.0949,3736.9,3736.8,0.53505]
[1753547487097,5.8686,3736.9,3736.8,0.53505]
[1753547487292,6.4547,3736.9,3736.8,0.53505]
[1753547487499,3.2858,3736.8,3736.4,3.2078]
[1753547487799,3.2858,3736.5,3736.4,0.53511]
[1753547493500,3.2858,3736.5,3736.4,1.04241]
[1753547493801,3.2858,3736.5,3736.4,0.53511]
[1753547494099,3.2858,3736.4,3736.3,1.50701]
[1753547494296,3.82091,3736.4,3736.3,1.7401]
[1753547495492,3.2858,3736.4,3736.3,2.78252]
[1753547495692,1.5574,3736.5,3736.4,2.59871]
[1753547495997,2.61659,3736.5,3736.4,1.4792]
[1753547496203,3.82089,3736.5,3736.2,1.68383]
[1753547496403,3.82091,3736.4,3736.3,0.5643]
[1753547496701,3.2858,3736.4,3736.3,0.5643]
[1753547497201,3.82091,3736.4,3736.3,0.5643]
[1753547497603,3.2858,3736.4,3736.3,1.09942]
[1753547497797,3.82091,3736.4,3736.3,0.5643]
[1753547498008,2.5121,3735.6,3735.5,6.42573]
[1753547498208,1.2978,3735.6,3735.5,19.24473]
[1753547498503,2.6997,3735.9,3735.8,3.78219]
[1753547500299,1.926,3735.9,3735.8,3.78219]
[1753547500803,3.2858,3735.9,3735.8,3.247]
[1753547500999,3.2858,3735.9,3735.8,3.78219]
[1753547501200,3.2858,3735.9,3735.8,0.94279]
[1753547501393,3.2858,3735.9,3735.8,2.09149]
[1753547501597,3.2858,3735.9,3735.8,3.36699]
[1753547501800,3.2858,3735.9,3735.8,3.78219]
[1753547503800,0.53521,3735.7,3735.6,0.5844]
[1753547504103,3.2078,3736.2,3735.3,1.5563]
[1753547504104,3.2858,3735.4,3735.3,1.5563]
[1753547504299,2.6676,3735.2,3735.1,2.27539]
[1753547504603,3.2858,3735.2,3735.1,2.78269]
[1753547504803,3.2858,3735.2,3735.1,3.78229]
[1753547507001,3.2858,3735.2,3735.1,2.78269]
[1753547507807,2.6997,3734.8,3734.7,2.2474]
[1753547508010,3.2858,3734.8,3734.7,2.78275]
[1753547508508,3.2858,3734.8,3734.7,2.01455]
[1753547508698,3.2858,3734.8,3734.7,1.45025]
[1753547509804,3.2858,3734.8,3734.7,2.01455]
[1753547510107,3.2858,3734.8,3734.7,2.78275]
[1753547510306,3.2858,3734.8,3734.7,3.36715]
[1753547511303,3.2858,3734.8,3734.7,3.78235]
[1753547518613,3.2858,3734.8,3734.7,2.78275]
[1753547519012,3.2858,3734.8,3734.7,3.36005]
[1753547519414,3.2858,3734.8,3734.7,3.76805]
[1753547521619,3.82113,3734.8,3734.7,2.8247]
[1753547521818,3.2997,3734.6,3734.3,3.2078]
[1753547522118,3.2078,3734.8,3734.0,0.5922]
[1753547522119,3.83511,3734.3,3734.0,0.5922]
[1753547522321,1.2987,3734.0,3733.9,0.91456]
[1753547522518,3.2997,3734.0,3733.9,1.50676]
[1753547522719,3.83516,3733.9,3733.8,0.19818686]
[1753547523018,3.2997,3733.9,3733.8,0.73366686]
[1753547523212,3.2997,3733.9,3733.8,0.19818686]
[1753547523418,3.2997,3733.9,3733.8,0.73366686]
[1753547523616,3.2997,3733.9,3733.8,1.11276686]
[1753547523825,3.2997,3733.9,3733.8,4.04406686]
[1753547524216,1.8971,3734.2,3734.1,1.86593]
[1753547524416,3.2997,3734.5,3734.4,1.86589]
[1753547524719,3.2997,3734.5,3734.4,3.84579]
[1753547524919,1.2987,3734.5,3734.4,3.84579]
[1753547525119,3.2997,3734.5,3734.4,3.84579]
[1753547525827,3.2997,3734.5,3734.4,2.86049]
[1753547526828,3.2997,3734.5,3734.4,3.84579]
[1753547527023,3.9931,3734.7,3734.6,3.84576]
[1753547527324,3.2078,3734.7,3734.6,3.84576]
[1753547527520,5.118,3735.3,3735.2,1.86578]
[1753547527728,5.118,3735.3,3735.2,3.84568]
[1753547528121,5.9091,3735.3,3735.2,3.84568]
[1753547528323,6.5075,3735.3,3735.2,3.84568]
[1753547529127,3.2997,3735.3,3735.2,3.84568]
[1753547531927,1.9102,3735.3,3735.2,3.84568]
[1753547532630,3.2997,3735.3,3735.2,3.84568]
[1753547534225,0.5984,3735.6,3735.0,1.33825]
[1753547534432,5.203,3735.7,3735.6,3.84562]
[1753547534629,7.30654144,3735.7,3735.6,3.84562]
[1753547534931,0.388,3735.7,3735.6,3.84562]
[1753547535423,1.4026,3736.0,3735.6,3.84562]
[1753547535624,1.9952,3736.0,3735.9,3.84558]
[1753547535826,0.388,3736.0,3735.9,3.84558]
[1753547536019,3.9931,3736.1,3736.0,1.86566]
[1753547536220,6.70804644,3736.1,3736.0,3.84556]
[1753547536427,5.9091,3736.1,3736.0,3.84556]
[1753547536627,6.5075,3736.1,3736.0,3.84556]
[1753547539632,5.9091,3736.1,3736.0,3.84556]
[1753547539930,5.118,3736.1,3736.0,3.84556]
[1753547540125,1.9102,3736.1,3736.0,3.84556]
[1753547540532,1.5764,3736.3,3736.2,1.86563]
[1753547540734,2.7013,3736.3,3736.2,3.84553]
[1753547540927,1.9102,3736.3,3736.2,3.84553]
[1753547541122,3.2997,3736.6,3736.5,3.84549]
[1753547543937,3.2997,3736.6,3736.5,2.86019]
[1753547544326,3.2997,3736.6,3736.5,0.53509]
[1753547546732,2.001,3736.5,3736.2,1.4026]
[1753547546937,2.5086,3736.2,3736.1,0.3791]
[1753547547137,3.2997,3736.2,3736.1,2.04985]
[1753547547337,3.2997,3736.2,3736.1,3.38835]
[1753547548143,3.2997,3736.2,3736.1,3.74965]
[1753547548744,3.2997,3736.2,3736.1,2.83835]
[1753547549241,3.2997,3736.2,3736.1,3.74965]
[1753547550643,2.7013,3736.2,3736.1,3.74965]
[1753547551734,3.2629,3736.2,3736.1,3.74965]
[1753547551933,3.2629,3736.2,3736.1,1.44645]
[1753547552135,3.2629,3736.2,3736.1,1.97145]
[1753547552345,3.2629,3736.2,3736.1,3.30995]
[1753547552535,3.2629,3736.2,3736.1,3.67125]
[1753547553851,2.7013,3736.2,3736.1,3.67125]
[1753547554448,3.2629,3736.2,3736.1,3.67125]
[1753547555048,3.2629,3736.2,3736.1,2.75995]
[1753547555253,3.2629,3736.2,3736.1,0.53515]
[1753547555452,3.2629,3736.2,3735.7,1.33802]
[1753547555453,1.2987,3736.2,3735.4,3.2078]
[1753547555750,3.2079,3735.4,3735.3,0.53526]
[1753547557054,3.2079,3734.9,3734.8,0.91923]
[1753547557248,3.2079,3734.9,3734.8,0.53533]
[1753547557852,3.2079,3734.9,3734.8,0.91923]
[1753547558154,3.2079,3734.9,3734.8,1.46403]
[1753547559155,3.2079,3734.9,3734.8,2.76013]
[1753547559555,3.2079,3734.9,3734.8,3.31013]
[1753547561258,3.2079,3734.9,3734.8,3.67143]
[1753547561761,3.2079,3734.9,3734.8,3.1361]
[1753547561955,3.2079,3734.9,3734.8,3.67143]
[1753547565258,5.8541,3735.2,3735.1,3.67139]
[1753547565458,6.4157,3735.2,3735.1,3.67139]
[1753547566463,6.4157,3735.2,3735.1,0.8915]
[1753547566962,6.4157,3735.2,3735.1,1.42679]
[1753547567162,6.4157,3735.2,3735.1,1.97159]
[1753547567463,6.4157,3735.2,3735.1,2.76009]
[1753547568463,6.95098,3735.2,3735.1,2.76009]
[1753547569263,3.74318,3735.2,3735.1,2.76009]
[1753547569761,3.74318,3735.2,3735.1,2.2248]
[1753547570354,3.74318,3735.2,3735.1,2.7748]
[1753547570554,3.2079,3735.2,3735.1,3.31009]
[1753547571163,3.2079,3735.2,3735.1,3.67139]
[1753547572565,3.2079,3735.2,3735.1,2.76009]
[1753547573961,3.2079,3735.2,3735.1,3.31009]
[1753547574166,3.2079,3735.2,3735.1,3.67139]
[1753547579457,2.6463,3735.2,3735.1,3.67139]
[1753547582871,3.2106,3735.2,3735.1,3.67139]
[1753547584274,4.00958817,3735.2,3735.1,3.67139]
[1753547584680,1.2152,3734.9,3734.8,2.79803]
[1753547584875,3.102,3734.9,3734.8,3.30693]
[1753547585275,3.102,3734.9,3734.8,3.67643]
[1753547586180,3.102,3734.9,3734.1,26.3348]
[1753547586181,1.70590451,3734.9,3734.4,0.7348]
[1753547586481,2.5672,3734.5,3734.4,1.40779]
[1753547586778,3.102,3734.5,3734.4,2.72499]
[1753547586981,3.90226792,3734.5,3734.4,3.30699]
[1753547587172,3.102,3734.5,3734.4,3.67649]
[1753547588681,1.75,3734.5,3734.4,3.67649]
[1753547588982,2.0542,3734.8,3734.7,3.67645]
[1753547589178,2.0661568,3734.8,3734.7,3.67645]
[1753547589482,3.102,3735.3,3735.2,3.67638]
[1753547589682,3.90156124,3735.3,3735.2,3.67638]
[1753547591277,4.43682124,3735.3,3735.2,1.0913]
[1753547591476,1.75052,3734.9,3734.7,1.11774]
[1753547591684,3.63734,3734.8,3734.6,0.53535]
[1753547591883,3.102,3734.7,3734.6,0.53536]
[1753547592279,4.43696586,3734.7,3734.5,0.53537]
[1753547592486,3.90151659,3734.6,3734.5,0.53537]
[1753547592685,3.102,3734.5,3734.4,0.53538]
[1753547592984,3.90151659,3734.5,3734.4,0.53538]
[1753547593993,3.102,3734.5,3734.4,1.48128]
[1753547594287,3.90119332,3734.5,3734.4,2.72498]
[1753547594477,3.102,3734.5,3734.4,2.72498]
[1753547595388,3.90117487,3734.5,3734.4,2.72498]
[1753547595589,3.90117487,3734.5,3734.4,3.30698]
[1753547595792,3.102,3734.5,3734.4,3.67648]
[1753547596587,3.102,3734.5,3734.4,2.72498]
[1753547596989,3.102,3734.5,3734.4,3.67648]
[1753547597594,3.102,3734.5,3734.4,2.72498]
[1753547597787,3.102,3734.5,3734.4,1.99018]
[1753547598295,3.102,3734.5,3734.4,2.72498]
[1753547598591,3.102,3734.5,3734.4,3.30698]
[1753547598995,3.102,3734.5,3734.4,3.67648]
[1753547599991,0.7877,3732.3,3732.2,0.01875544]
[1753547600289,2.3143,3732.9,3732.8,0.8772]
[1753547600590,6.0577,3732.9,3732.8,0.8772]
[1753547600792,5.5229,3732.9,3732.8,1.612]
[1753547601191,6.0577,3732.9,3732.8,0.5089]
[1753547601390,2.84995,3732.6,3732.5,1.612]
[1753547601589,2.84995,3732.6,3732.5,1.6072]
[1753547602392,3.63765,3732.6,3732.5,1.615]
[1753547603085,1.7795,3732.6,3732.5,1.9787]